[Event "105th British-ch 2018"]
[Site "Hull"]
[Date "2018.08.05"]
[Round "9"]
[White "Abdulla, Murad"]
[Black "Kalaiyalahan, Akshaya"]
[Result "0-1"]
[ECO "B70"]
[WhiteElo "2281"]
[BlackElo "2138"]
[Annotator "ChessBase"]
[PlyCount "114"]
[EventDate "2018.07.28"]
[EventType "swiss"]
[EventCountry "GBR"]
[SourceTitle "playchess.com"]
[Source "ChessBase"]
[SourceQuality "1"]
[TimeControl "40/5400+30:1800+30"]

1. e4 {[%emt 0:01:44]} c5 {[%emt 0:00:00]} 2. Nf3 {[%emt 0:00:15]} Nc6 {[%emt 0:00:00]} 3. d4 {[%emt 0:00:28]} cxd4 {[%emt 0:00:10]} 4. Nxd4 {[%emt 0:00:19]} g6 {[%emt 0:00:22]} 5. Nc3 {[%emt 0:00:19]} Bg7 {[%emt 0:00:20]} 6. Nde2 {[%emt 0:01:41]} Nf6 {[%emt 0:02:48]} 7. g3 {[%emt 0:00:39]} d6 {[%emt 0:02:38]} 8. Bg2 {[%emt 0:00:17]} O-O {[%emt 0:01:08]} 9. O-O {[%emt 0:00:28]} Bd7 {[%emt 0:04:37]} 10. h3 {[%emt 0:00:36]} a6 {[%emt 0:02:40]} 11. a4 {[%emt 0:00:24]} Rb8 {[%emt 0:03:17]} 12. b3 {[%emt 0:07:38]} b5 {[%emt 0:06:09]} 13. Rb1 {[%emt 0:04:04]} Ne8 {[%emt 0:12:33]} 14. axb5 {[%emt 0:04:26]} axb5 {[%emt 0:01:53]} 15. Be3 {[%emt 0:00:17]} b4 {[%emt 0:05:11]} 16. Nd5 {[%emt 0:01:19]} e6 {[%emt 0:03:09]} 17. Ndf4 {[%emt 0:00:37]} Qe7 {[%emt 0:02:17]} 18. Qd2 {[%emt 0:02:18]} Nc7 {[%emt 0:02:31]} 19. Rbd1 {[%emt 0:08:56]} Nb5 {[%emt 0:02:18]} 20. h4 {[%emt 0:04:55]} Rfc8 {[%emt 0:06:49]} 21. h5 {[%emt 0:05:38]} Ne5 {[%emt 0:07:19]} 22. hxg6 {[%emt 0:05:08]} hxg6 {[%emt 0:00:28]} 23. f3 {[%emt 0:06:20]} Bf8 {[%emt 0:06:18]} 24. Nd4 {[%emt 0:09:23]} Nc3 {[%emt 0:02:14]} 25. Ra1 {[%emt 0:02:39]} Rc7 {[%emt 0:07:17]} 26. Ra5 {[%emt 0:03:56]} Nc6 {[%emt 0:01:49]} 27. Nxc6 {[%emt 0:04:45]} Bxc6 {[%emt 0:00:17]} 28. Nd3 {[%emt 0:01:28]} Bg7 {[%emt 0:00:53]} 29. e5 {[%emt 0:00:55]} dxe5 {[%emt 0:04:06]} 30. Bc5 {[%emt 0:07:13]} Qd7 {[%emt 0:00:28]} 31. Bxb4 {[%emt 0:03:46]} Qd4+ {[%emt 0:05:03]} 32. Rf2 {[%emt 0:00:59]} e4 {[%emt 0:00:14]} 33. fxe4 {[%emt 0:02:03]} Nxe4 {[%emt 0:01:52]} 34. c3 {[%emt 0:01:39]} Qxf2+ {[%emt 0:02:13]} 35. Qxf2 {[%emt 0:05:01]} Nxf2 {[%emt 0:00:05]} 36. Nxf2 {[%emt 0:00:07]} Bxg2 {[%emt 0:01:50]} 37. Bd6 {[%emt 0:00:19]} Rcc8 {[%emt 0:00:16]} 38. Bxb8 {[%emt 0:00:17]} Rxb8 {[%emt 0:00:04]} 39. Kxg2 {[%emt 0:00:26]} Bxc3 {[%emt 0:00:08]} 40. Ra3 {[%emt 0:02:20]} Bb2 {[%emt 0:00:26]} 41. Ra6 {[%emt 0:31:02]} Rxb3 {[%emt 0:33:02]} 42. Ne4 {[%emt 0:00:13]} Be5 {[%emt 0:00:00]} 43. Ra5 {[%emt 0:00:00]} Bb8 {[%emt 0:00:00]} 44. g4 {[%emt 0:00:00]} f5 {[%emt 0:00:00]} 45. Nc5 {[%emt 0:00:00]} Rb4 {[%emt 0:00:00]} 46. g5 {[%emt 0:00:00]} Kf7 {[%emt 0:00:00]} 47. Kf3 {[%emt 0:00:00]} Bd6 {[%emt 0:00:00]} 48. Nd3 {[%emt 0:00:00]} Rb7 {[%emt 0:00:00]} 49. Ra6 {[%emt 0:00:00]} Rd7 {[%emt 0:00:00]} 50. Nb2 {[%emt 0:00:00]} e5 {[%emt 0:00:00]} 51. Nc4 {[%emt 0:00:00]} e4+ {[%emt 0:00:00]} 52. Ke3 {[%emt 0:00:00]} Bc7 {[%emt 0:00:00]} 53. Rf6+ {[%emt 0:00:00]} Kg7 {[%emt 0:00:00]} 54. Rc6 {[%emt 0:00:00]} Rd3+ {[%emt 0:00:00]} 55. Ke2 {[%emt 0:00:00]} Bf4 {[%emt 0:00:00]} 56. Ra6 {[%emt 0:00:00]} Rd7 {[%emt 0:00:00]} 57. Rc6 {[%emt 0:00:00]} Re7 {[%emt 0:00:00]} 0-1

[Event "105th British-ch 2018"]
[Site "Hull"]
[Date "2018.08.05"]
[Round "9"]
[White "Kalavannan, Koby"]
[Black "Houska, Jovanka"]
[Result "1/2-1/2"]
[ECO "E16"]
[WhiteElo "2277"]
[BlackElo "2406"]
[Annotator "NA"]
[PlyCount "67"]
[EventDate "2018.07.28"]
[EventType "swiss"]
[EventCountry "GBR"]
[SourceTitle "playchess.com"]
[Source "ChessBase"]
[SourceQuality "1"]
[TimeControl "40/5400+30:1800+30"]

1. d4 {[%emt 0:00:00]} d5 {[%emt 0:00:00]} 2. c4 {[%emt 0:00:00]} e6 {[%emt 0:00:05]} 3. g3 {[%emt 0:00:00]} Nf6 {[%emt 0:00:37]} 4. Bg2 {[%emt 0:00:00]} Bb4+ {[%emt 0:00:06]} 5. Nd2 {[%emt 0:00:00]} O-O {[%emt 0:00:28]} 6. Ngf3 {[%emt 0:00:03]} b6 {[%emt 0:00:31]} 7. O-O {[%emt 0:00:08]} Bb7 {[%emt 0:00:03]} 8. Ne5 {[%emt 0:00:13]} Qc8 {[%emt 0:00:16]} 9. Qa4 {[%emt 0:09:43]} Be7 {[%emt 0:07:37]} 10. cxd5 {[%emt 0:10:28]} Bxd5 {[%emt 0:01:45]} 11. e4 {[%emt 0:06:48]} Bb7 {[%emt 0:00:06]} 12. b4 {[%emt 0:04:13]} b5 {[%emt 0:05:41]} 13. Qb3 {[%emt 0:16:13]} a5 {[%emt 0:01:50]} 14. bxa5 {[%emt 0:08:14]} Rxa5 {[%emt 0:04:42]} 15. Bb2 {[%emt 0:00:46]} Nbd7 {[%emt 0:04:21]} 16. Rfc1 {[%emt 0:02:39]} Nxe5 {[%emt 0:24:22]} 17. dxe5 {[%emt 0:00:02]} Ne8 {[%emt 0:00:06]} 18. Bc3 {[%emt 0:03:23]} b4 {[%emt 0:07:16]} 19. Nc4 {[%emt 0:01:46]} Ra6 {[%emt 0:07:35]} 20. Bxb4 {[%emt 0:00:49]} Bxb4 {[%emt 0:00:29]} 21. Qxb4 {[%emt 0:00:01]} Qa8 {[%emt 0:00:05]} 22. Qb5 {[%emt 0:17:40]} Bc6 {[%emt 0:02:22]} 23. Qb1 {[%emt 0:01:04]} f5 {[%emt 0:04:55]} 24. Nd2 {[%emt 0:01:25]} Qa7 {[%emt 0:09:32]} 25. Qc2 {[%emt 0:04:19]} Rf7 {[%emt 0:04:04]} 26. Qc5 {[%emt 0:01:58]} Qa8 {[%emt 0:02:23]} 27. Bf1 {[%emt 0:05:40]} Rb6 {[%emt 0:01:23]} 28. exf5 {[%emt 0:00:22]} Rxf5 {[%emt 0:00:35]} 29. a4 {[%emt 0:02:17]} Bd5 {[%emt 0:00:40]} 30. a5 {[%emt 0:00:31]} Rc6 {[%emt 0:00:48]} 31. Qb5 {[%emt 0:02:08]} Qa7 {[%emt 0:00:38]} 32. Qe2 {[%emt 0:01:05]} Rxc1 {[%emt 0:00:14]} 33. Rxc1 {[%emt 0:00:01]} Qxa5 {[%emt 0:00:06]} 34. Bh3 {[%emt 0:00:40]} 1/2-1/2

[Event "105th British-ch 2018"]
[Site "Hull"]
[Date "2018.08.05"]
[Round "9"]
[White "Toma, Katarzyna"]
[Black "Zapolskis, Antanas"]
[Result "0-1"]
[ECO "B30"]
[WhiteElo "2274"]
[BlackElo "2283"]
[Annotator "NA"]
[PlyCount "86"]
[EventDate "2018.07.28"]
[EventType "swiss"]
[EventCountry "GBR"]
[SourceTitle "playchess.com"]
[Source "ChessBase"]
[SourceQuality "1"]
[TimeControl "40/5400+30:1800+30"]

1. e4 {[%emt 0:00:00]} c5 {[%emt 0:00:00]} 2. Nf3 {[%emt 0:00:00]} Nc6 {[%emt 0:00:00]} 3. Bb5 {[%emt 0:00:04]} Na5 {[%emt 0:01:02]} 4. d4 {[%emt 0:03:06]} a6 {[%emt 0:01:56]} 5. Be2 {[%emt 0:00:23]} cxd4 {[%emt 0:00:52]} 6. Nxd4 {[%emt 0:00:51]} e5 {[%emt 0:02:20]} 7. Nf3 {[%emt 0:04:03]} d6 {[%emt 0:01:32]} 8. Be3 {[%emt 0:11:56]} Nf6 {[%emt 0:00:39]} 9. Nc3 {[%emt 0:08:26]} Be7 {[%emt 0:02:37]} 10. h3 {[%emt 0:02:47]} b5 {[%emt 0:05:36]} 11. O-O {[%emt 0:01:09]} Bb7 {[%emt 0:00:36]} 12. Nd5 {[%emt 0:05:54]} Nxd5 {[%emt 0:02:25]} 13. exd5 {[%emt 0:00:04]} Nc4 {[%emt 0:00:21]} 14. Bxc4 {[%emt 0:03:41]} bxc4 {[%emt 0:00:07]} 15. b3 {[%emt 0:00:12]} c3 {[%emt 0:01:47]} 16. Qd3 {[%emt 0:00:20]} Rc8 {[%emt 0:00:58]} 17. a4 {[%emt 0:02:14]} O-O {[%emt 0:00:17]} 18. a5 {[%emt 0:00:14]} f5 {[%emt 0:00:12]} 19. Bb6 {[%emt 0:00:40]} Qd7 {[%emt 0:01:15]} 20. Nh2 {[%emt 0:06:21]} e4 {[%emt 0:00:22]} 21. Qe2 {[%emt 0:00:05]} Bxd5 {[%emt 0:15:40]} 22. Qxa6 {[%emt 0:03:01]} Bc6 {[%emt 0:00:06]} 23. Rfd1 {[%emt 0:05:39]} f4 {[%emt 0:09:37]} 24. Qc4+ {[%emt 0:02:15]} Kh8 {[%emt 0:06:04]} 25. Qxc3 {[%emt 0:00:05]} Rf6 {[%emt 0:04:38]} 26. Ng4 {[%emt 0:06:46]} Rf5 {[%emt 0:00:15]} 27. Bd4 {[%emt 0:04:48]} Rg5 {[%emt 0:02:30]} 28. Be5 {[%emt 0:05:16]} Ba8 {[%emt 0:04:14]} 29. Qd4 {[%emt 0:01:39]} Rxg4 {[%emt 0:00:10]} 30. hxg4 {[%emt 0:01:03]} Qxg4 {[%emt 0:00:08]} 31. Bxf4 {[%emt 0:06:52]} Qxf4 {[%emt 0:00:21]} 32. Ra2 {[%emt 0:01:08]} d5 {[%emt 0:00:58]} 33. Qd2 {[%emt 0:05:18]} Qg4 {[%emt 0:06:16]} 34. Rb1 {[%emt 0:03:25]} Bf6 {[%emt 0:01:03]} 35. b4 {[%emt 0:00:22]} d4 {[%emt 0:00:12]} 36. Qd1 {[%emt 0:00:16]} Qg5 {[%emt 0:01:17]} 37. Qe2 {[%emt 0:01:45]} e3 {[%emt 0:01:19]} 38. fxe3 {[%emt 0:00:04]} Bd5 {[%emt 0:00:07]} 39. Ra3 {[%emt 0:02:11]} dxe3 {[%emt 0:01:12]} 40. Rd1 {[%emt 0:02:25]} Re8 {[%emt 0:04:20]} 41. a6 {[%emt 0:33:01]} Bxg2 {[%emt 0:30:51]} 42. Qxg2 {[%emt 0:00:30]} e2 {[%emt 0:00:09]} 43. Re1 {[%emt 0:00:00]} Bd4+ {[%emt 0:00:00]} 0-1

[Event "105th British-ch 2018"]
[Site "Hull"]
[Date "2018.08.05"]
[Round "9"]
[White "Mcmichael, Richard J"]
[Black "Mcdougall, William M"]
[Result "0-1"]
[ECO "A03"]
[WhiteElo "2245"]
[BlackElo "2056"]
[Annotator "NA"]
[PlyCount "86"]
[EventDate "2018.07.28"]
[EventType "swiss"]
[EventCountry "GBR"]
[SourceTitle "playchess.com"]
[Source "ChessBase"]
[SourceQuality "1"]
[TimeControl "40/5400+30:1800+30"]

1. f4 {[%emt 0:00:08]} Nf6 {[%emt 0:00:00]} 2. Nf3 {[%emt 0:00:12]} d5 {[%emt 0:00:33]} 3. e3 {[%emt 0:00:11]} g6 {[%emt 0:00:16]} 4. d4 {[%emt 0:00:14]} Bg7 {[%emt 0:00:05]} 5. Bd3 {[%emt 0:00:04]} O-O {[%emt 0:00:09]} 6. O-O {[%emt 0:00:31]} c5 {[%emt 0:00:55]} 7. c3 {[%emt 0:00:07]} b6 {[%emt 0:01:44]} 8. Qe2 {[%emt 0:00:07]} Bb7 {[%emt 0:00:05]} 9. Bd2 {[%emt 0:00:30]} Qc8 {[%emt 0:00:54]} 10. Be1 {[%emt 0:01:03]} Ba6 {[%emt 0:00:33]} 11. Ne5 {[%emt 0:00:13]} Bxd3 {[%emt 0:01:21]} 12. Nxd3 {[%emt 0:00:09]} Nbd7 {[%emt 0:01:54]} 13. Bh4 {[%emt 0:00:32]} Qb7 {[%emt 0:02:47]} 14. Nd2 {[%emt 0:00:24]} Rac8 {[%emt 0:04:24]} 15. g4 {[%emt 0:03:04]} Rfe8 {[%emt 0:15:04]} 16. Qg2 {[%emt 0:03:07]} b5 {[%emt 0:03:12]} 17. f5 {[%emt 0:02:32]} b4 {[%emt 0:07:06]} 18. Rf2 {[%emt 0:07:06]} bxc3 {[%emt 0:07:41]} 19. bxc3 {[%emt 0:00:08]} cxd4 {[%emt 0:00:16]} 20. cxd4 {[%emt 0:00:03]} Rc3 {[%emt 0:01:55]} 21. Rb1 {[%emt 0:04:09]} Qc8 {[%emt 0:04:26]} 22. Rb3 {[%emt 0:01:38]} Rxb3 {[%emt 0:01:34]} 23. Nxb3 {[%emt 0:06:47]} Qc3 {[%emt 0:02:10]} 24. Nbc1 {[%emt 0:00:12]} Rc8 {[%emt 0:01:38]} 25. Rf1 {[%emt 0:04:02]} Nb6 {[%emt 0:01:36]} 26. Bxf6 {[%emt 0:08:33]} exf6 {[%emt 0:03:29]} 27. g5 {[%emt 0:00:52]} Nc4 {[%emt 0:05:29]} 28. Qh3 {[%emt 0:03:27]} Re8 {[%emt 0:04:07]} 29. fxg6 {[%emt 0:01:47]} hxg6 {[%emt 0:04:29]} 30. gxf6 {[%emt 0:00:25]} Rxe3 {[%emt 0:01:47]} 31. Qc8+ {[%emt 0:02:37]} Bf8 {[%emt 0:00:10]} 32. Rf4 {[%emt 0:06:32]} Rxd3 {[%emt 0:09:28]} 33. Nxd3 {[%emt 0:00:04]} Qxd3 {[%emt 0:00:06]} 34. Qg4 {[%emt 0:02:29]} Qe3+ {[%emt 0:07:18]} 35. Kg2 {[%emt 0:04:23]} Qd2+ {[%emt 0:02:55]} 36. Kh3 {[%emt 0:00:28]} Ne3 {[%emt 0:01:15]} 37. Qf3 {[%emt 0:01:38]} Bd6 {[%emt 0:01:09]} 38. Qf2 {[%emt 0:00:10]} Qc1 {[%emt 0:02:33]} 39. Rf3 {[%emt 0:01:45]} Nf5 {[%emt 0:00:56]} 40. Kg4 {[%emt 0:05:08]} Nh6+ {[%emt 0:01:38]} 41. Kh3 {[%emt 0:30:17]} Qg5 {[%emt 0:04:52]} 42. Qh4 {[%emt 0:00:00]} Qg1 {[%emt 0:02:34]} 43. Rf2 {[%emt 0:00:00]} Nf5 {[%emt 0:01:07]} 0-1

[Event "105th British-ch 2018"]
[Site "Hull"]
[Date "2018.08.05"]
[Round "9"]
[White "Wall, Tim P"]
[Black "Bradbury, Neil H"]
[Result "1/2-1/2"]
[ECO "A45"]
[WhiteElo "2234"]
[BlackElo "2348"]
[Annotator "NA"]
[PlyCount "55"]
[EventDate "2018.07.28"]
[EventType "swiss"]
[EventCountry "GBR"]
[SourceTitle "playchess.com"]
[Source "ChessBase"]
[SourceQuality "1"]
[TimeControl "40/5400+30:1800+30"]

1. d4 {[%emt 0:18:16]} Nf6 {[%emt 0:00:00]} 2. Bg5 {[%emt 0:00:13]} Ne4 {[%emt 0:01:58]} 3. Bf4 {[%emt 0:00:42]} c5 {[%emt 0:00:16]} 4. d5 {[%emt 0:00:18]} Qb6 {[%emt 0:08:01]} 5. Nd2 {[%emt 0:00:14]} Nxd2 {[%emt 0:02:40]} 6. Bxd2 {[%emt 0:02:15]} e5 {[%emt 0:08:23]} 7. e4 {[%emt 0:05:52]} Qg6 {[%emt 0:07:01]} 8. Qe2 {[%emt 0:07:47]} Be7 {[%emt 0:05:16]} 9. O-O-O {[%emt 0:11:01]} Bg5 {[%emt 0:07:38]} 10. d6 {[%emt 0:06:41]} Bxd2+ {[%emt 0:07:38]} 11. Qxd2 {[%emt 0:10:22]} Nc6 {[%emt 0:06:09]} 12. Nf3 {[%emt 0:07:11]} O-O {[%emt 0:01:18]} 13. Qe3 {[%emt 0:02:01]} b6 {[%emt 0:10:29]} 14. Bc4 {[%emt 0:01:32]} Bb7 {[%emt 0:00:08]} 15. Bd5 {[%emt 0:03:54]} Rae8 {[%emt 0:04:04]} 16. h4 {[%emt 0:00:51]} Na5 {[%emt 0:03:21]} 17. h5 {[%emt 0:04:36]} Qf6 {[%emt 0:00:21]} 18. Nh4 {[%emt 0:05:53]} Bxd5 {[%emt 0:05:04]} 19. Rxd5 {[%emt 0:00:08]} g6 {[%emt 0:00:09]} 20. g3 {[%emt 0:04:06]} Re6 {[%emt 0:03:38]} 21. Rhd1 {[%emt 0:01:16]} Rc8 {[%emt 0:03:57]} 22. b3 {[%emt 0:01:46]} Rc6 {[%emt 0:01:59]} 23. Qd3 {[%emt 0:02:16]} c4 {[%emt 0:04:11]} 24. Qe3 {[%emt 0:00:16]} Rexd6 {[%emt 0:01:45]} 25. b4 {[%emt 0:00:32]} Nb7 {[%emt 0:00:35]} 26. Nf3 {[%emt 0:00:42]} Rc8 {[%emt 0:03:59]} 27. Nxe5 {[%emt 0:00:49]} Re6 {[%emt 0:01:31]} 28. Nxd7 {[%emt 0:00:38]} 1/2-1/2

[Event "105th British-ch 2018"]
[Site "Hull"]
[Date "2018.08.05"]
[Round "9"]
[White "Tozer, Philip A A"]
[Black "Krzyzanowski, Patryk"]
[Result "1/2-1/2"]
[ECO "A14"]
[WhiteElo "2142"]
[BlackElo "2087"]
[Annotator "NA"]
[PlyCount "115"]
[EventDate "2018.07.28"]
[EventType "swiss"]
[EventCountry "GBR"]
[SourceTitle "playchess.com"]
[Source "ChessBase"]
[SourceQuality "1"]
[TimeControl "40/5400+30:1800+30"]

1. c4 {[%emt 0:00:00]} e6 {[%emt 0:00:00]} 2. g3 {[%emt 0:00:00]} d5 {[%emt 0:00:08]} 3. Bg2 {[%emt 0:00:00]} Nf6 {[%emt 0:00:20]} 4. Nf3 {[%emt 0:00:08]} c5 {[%emt 0:04:26]} 5. O-O {[%emt 0:00:39]} Nc6 {[%emt 0:01:09]} 6. b3 {[%emt 0:01:36]} d4 {[%emt 0:01:39]} 7. e3 {[%emt 0:00:07]} Be7 {[%emt 0:00:35]} 8. exd4 {[%emt 0:00:20]} cxd4 {[%emt 0:00:47]} 9. Re1 {[%emt 0:00:47]} O-O {[%emt 0:00:15]} 10. d3 {[%emt 0:05:45]} Re8 {[%emt 0:01:08]} 11. Ba3 {[%emt 0:05:00]} Bxa3 {[%emt 0:07:24]} 12. Nxa3 {[%emt 0:00:06]} e5 {[%emt 0:00:57]} 13. Rb1 {[%emt 0:12:37]} Bg4 {[%emt 0:13:35]} 14. h3 {[%emt 0:03:43]} Bh5 {[%emt 0:04:11]} 15. g4 {[%emt 0:04:25]} Bg6 {[%emt 0:00:31]} 16. Nh4 {[%emt 0:06:06]} Ne4 {[%emt 0:02:54]} 17. Bxe4 {[%emt 0:00:27]} Qxh4 {[%emt 0:00:13]} 18. Qf3 {[%emt 0:03:17]} h5 {[%emt 0:07:20]} 19. Nb5 {[%emt 0:03:48]} hxg4 {[%emt 0:02:55]} 20. hxg4 {[%emt 0:01:14]} Bxe4 {[%emt 0:08:48]} 21. Rxe4 {[%emt 0:03:31]} Re6 {[%emt 0:03:57]} 22. Nc7 {[%emt 0:01:31]} Rf6 {[%emt 0:00:18]} 23. Qg2 {[%emt 0:01:37]} Rd8 {[%emt 0:01:10]} 24. g5 {[%emt 0:20:39]} Rf4 {[%emt 0:01:06]} 25. Rxf4 {[%emt 0:05:31]} Qxf4 {[%emt 0:02:27]} 26. Nd5 {[%emt 0:01:20]} Qf5 {[%emt 0:01:18]} 27. Qg3 {[%emt 0:05:39]} Rd6 {[%emt 0:00:32]} 28. Kh2 {[%emt 0:00:21]} Rg6 {[%emt 0:00:31]} 29. Rg1 {[%emt 0:00:17]} f6 {[%emt 0:00:47]} 30. Qh3 {[%emt 0:01:15]} Qxh3+ {[%emt 0:16:34]} 31. Kxh3 {[%emt 0:00:03]} Kf7 {[%emt 0:04:31]} 32. Rg2 {[%emt 0:04:34]} fxg5 {[%emt 0:03:25]} 33. Kg4 {[%emt 0:00:18]} Re6 {[%emt 0:02:28]} 34. f3 {[%emt 0:01:59]} Kg6 {[%emt 0:01:17]} 35. b4 {[%emt 0:01:18]} Nd8 {[%emt 0:02:07]} 36. Re2 {[%emt 0:01:14]} Nf7 {[%emt 0:00:22]} 37. f4 {[%emt 0:03:23]} Nh6+ {[%emt 0:00:12]} 38. Kf3 {[%emt 0:00:02]} g4+ {[%emt 0:00:49]} 39. Kg3 {[%emt 0:00:35]} Kf5 {[%emt 0:01:20]} 40. Rxe5+ {[%emt 0:03:36]} Rxe5 {[%emt 0:00:12]} 41. fxe5 {[%emt 0:30:03]} Kxe5 {[%emt 0:30:24]} 42. Nf4 {[%emt 0:00:00]} b5 {[%emt 0:00:00]} 43. cxb5 {[%emt 0:00:00]} Nf5+ {[%emt 0:00:00]} 44. Kxg4 {[%emt 0:00:00]} Ne3+ {[%emt 0:00:00]} 45. Kg5 {[%emt 0:00:00]} Nc2 {[%emt 0:00:00]} 46. a4 {[%emt 0:00:00]} Nxb4 {[%emt 0:00:00]} 47. a5 {[%emt 0:00:00]} Nd5 {[%emt 0:01:48]} 48. Nxd5 {[%emt 0:00:00]} Kxd5 {[%emt 0:00:07]} 49. Kg6 {[%emt 0:00:00]} Kc5 {[%emt 0:01:40]} 50. b6 {[%emt 0:00:00]} axb6 {[%emt 0:00:18]} 51. axb6 {[%emt 0:00:00]} Kxb6 {[%emt 0:00:06]} 52. Kxg7 {[%emt 0:00:00]} Kc7 {[%emt 0:01:39]} 53. Kf6 {[%emt 0:00:00]} Kd6 {[%emt 0:00:05]} 54. Kf5 {[%emt 0:00:00]} Kd5 {[%emt 0:00:07]} 55. Kf4 {[%emt 0:00:00]} Kd6 {[%emt 0:00:08]} 56. Ke4 {[%emt 0:00:00]} Ke6 {[%emt 0:00:07]} 57. Kxd4 {[%emt 0:00:00]} Kd6 {[%emt 0:00:07]} 58. Ke4 {[%emt 0:00:00] Ke5+ [%emt 00:00:24]} 1/2-1/2

[Event "105th British-ch 2018"]
[Site "Hull"]
[Date "2018.08.05"]
[Round "9"]
[White "Jarmany, John"]
[Black "De Coverly, Roger D"]
[Result "1-0"]
[ECO "E70"]
[WhiteElo "2110"]
[BlackElo "1920"]
[Annotator "NA"]
[PlyCount "45"]
[EventDate "2018.07.28"]
[EventType "swiss"]
[EventCountry "GBR"]
[SourceTitle "playchess.com"]
[Source "ChessBase"]
[SourceQuality "1"]
[TimeControl "40/5400+30:1800+30"]

1. d4 {[%emt 0:00:00]} Nf6 {[%emt 0:00:29]} 2. c4 {[%emt 0:00:00]} g6 {[%emt 0:00:34]} 3. Nc3 {[%emt 0:00:00]} Bg7 {[%emt 0:00:07]} 4. e4 {[%emt 0:00:00]} d6 {[%emt 0:00:04]} 5. Nge2 {[%emt 0:00:00]} O-O {[%emt 0:00:57]} 6. Ng3 {[%emt 0:00:00]} c5 {[%emt 0:00:15]} 7. d5 {[%emt 0:00:00]} h5 {[%emt 0:00:26]} 8. Be2 {[%emt 0:00:22]} e6 {[%emt 0:03:03]} 9. Bg5 {[%emt 0:00:51]} exd5 {[%emt 0:00:48]} 10. cxd5 {[%emt 0:00:13]} Nbd7 {[%emt 0:03:02]} 11. Qd2 {[%emt 0:04:02]} a6 {[%emt 0:01:40]} 12. a4 {[%emt 0:00:07]} Qa5 {[%emt 0:02:20]} 13. O-O {[%emt 0:01:06]} Re8 {[%emt 0:02:42]} 14. h3 {[%emt 0:04:38]} Nh7 {[%emt 0:03:00]} 15. Be3 {[%emt 0:03:36]} h4 {[%emt 0:04:41]} 16. Nh1 {[%emt 0:00:20]} Rb8 {[%emt 0:10:19]} 17. f3 {[%emt 0:03:03]} Qb4 {[%emt 0:01:54]} 18. Nf2 {[%emt 0:04:53]} c4 {[%emt 0:03:58]} 19. Bd4 {[%emt 0:05:39]} Bxd4 {[%emt 0:02:32]} 20. Qxd4 {[%emt 0:00:04]} b5 {[%emt 0:00:59]} 21. axb5 {[%emt 0:00:12]} axb5 {[%emt 0:00:28]} 22. Nd3 {[%emt 0:00:17]} Qb3 {[%emt 0:04:46]} 23. Bd1 {[%emt 0:00:23]} 1-0

[Event "105th British-ch 2018"]
[Site "Hull"]
[Date "2018.08.05"]
[Round "9"]
[White "Waddington, Mike P"]
[Black "Verma, Aditya"]
[Result "0-1"]
[ECO "A16"]
[WhiteElo "2110"]
[BlackElo "2084"]
[Annotator "NA"]
[PlyCount "66"]
[EventDate "2018.07.28"]
[EventType "swiss"]
[EventCountry "GBR"]
[SourceTitle "playchess.com"]
[Source "ChessBase"]
[SourceQuality "1"]
[TimeControl "40/5400+30:1800+30"]

1. c4 {[%emt 0:00:00]} Nf6 {[%emt 0:00:00]} 2. Nc3 {[%emt 0:00:00]} c6 {[%emt 0:00:08]} 3. e4 {[%emt 0:01:59]} d5 {[%emt 0:00:09]} 4. e5 {[%emt 0:00:28]} d4 {[%emt 0:00:51]} 5. exf6 {[%emt 0:00:54]} dxc3 {[%emt 0:00:10]} 6. bxc3 {[%emt 0:02:01]} gxf6 {[%emt 0:01:35]} 7. d4 {[%emt 0:00:45]} Bf5 {[%emt 0:01:37]} 8. Bd3 {[%emt 0:02:45]} Qa5 {[%emt 0:09:19]} 9. Ne2 {[%emt 0:06:56]} Nd7 {[%emt 0:06:20]} 10. O-O {[%emt 0:05:30]} e6 {[%emt 0:00:52]} 11. Bxf5 {[%emt 0:05:33]} Qxf5 {[%emt 0:00:07]} 12. Ng3 {[%emt 0:00:15]} Qa5 {[%emt 0:01:12]} 13. Qf3 {[%emt 0:05:44]} Be7 {[%emt 0:02:11]} 14. Bf4 {[%emt 0:04:31]} Nb6 {[%emt 0:02:20]} 15. Rab1 {[%emt 0:09:14]} O-O-O {[%emt 0:09:04]} 16. c5 {[%emt 0:04:24]} Nd5 {[%emt 0:01:00]} 17. Rb3 {[%emt 0:06:30]} Qa6 {[%emt 0:04:35]} 18. Rfb1 {[%emt 0:01:07]} Rd7 {[%emt 0:00:38]} 19. Bc1 {[%emt 0:04:36]} Qc4 {[%emt 0:16:17]} 20. Ne4 {[%emt 0:01:36]} a5 {[%emt 0:00:44]} 21. Nd2 {[%emt 0:09:14]} Qa6 {[%emt 0:01:08]} 22. a3 {[%emt 0:02:19]} a4 {[%emt 0:07:32]} 23. Rb6 {[%emt 0:02:00]} Qa5 {[%emt 0:05:35]} 24. R1b4 {[%emt 0:02:37]} Nxb6 {[%emt 0:03:33]} 25. Rxb6 {[%emt 0:00:14]} Bxc5 {[%emt 0:04:26]} 26. dxc5 {[%emt 0:07:18]} Qxc5 {[%emt 0:00:06]} 27. Rb4 {[%emt 0:01:31]} Rhd8 {[%emt 0:00:46]} 28. Nf1 {[%emt 0:00:24]} Rd1 {[%emt 0:01:37]} 29. Bf4 {[%emt 0:03:29]} R8d3 {[%emt 0:03:25]} 30. Qg4 {[%emt 0:00:39]} Qxc3 {[%emt 0:03:42]} 31. Re4 {[%emt 0:04:42]} f5 {[%emt 0:01:15]} 32. Qg8+ {[%emt 0:04:27]} Rd8 {[%emt 0:00:18]} 33. Qxf7 {[%emt 0:01:25]} Rxf1+ {[%emt 0:00:30]} 0-1

[Event "105th British-ch 2018"]
[Site "Hull"]
[Date "2018.08.05"]
[Round "9"]
[White "Maroroa, Sue Y"]
[Black "Britton, Richard"]
[Result "1/2-1/2"]
[ECO "B22"]
[WhiteElo "2104"]
[BlackElo "2249"]
[Annotator "NA"]
[PlyCount "60"]
[EventDate "2018.07.28"]
[EventType "swiss"]
[EventCountry "GBR"]
[SourceTitle "playchess.com"]
[Source "ChessBase"]
[SourceQuality "1"]
[TimeControl "40/5400+30:1800+30"]

1. e4 {[%emt 0:04:00]} c5 {[%emt 0:00:00]} 2. c3 {[%emt 0:00:04]} Nf6 {[%emt 0:03:17]} 3. e5 {[%emt 0:00:08]} Nd5 {[%emt 0:00:05]} 4. Nf3 {[%emt 0:00:05]} Nc6 {[%emt 0:00:53]} 5. d4 {[%emt 0:00:08]} cxd4 {[%emt 0:00:22]} 6. Bc4 {[%emt 0:00:04]} Nb6 {[%emt 0:00:27]} 7. Bb3 {[%emt 0:00:04]} d5 {[%emt 0:05:54]} 8. exd6 {[%emt 0:01:06]} Qxd6 {[%emt 0:00:24]} 9. O-O {[%emt 0:00:10]} Bf5 {[%emt 0:02:41]} 10. cxd4 {[%emt 0:03:37]} e6 {[%emt 0:00:42]} 11. Nc3 {[%emt 0:03:51]} Be7 {[%emt 0:00:09]} 12. d5 {[%emt 0:04:41]} exd5 {[%emt 0:03:17]} 13. Nxd5 {[%emt 0:00:21]} Nxd5 {[%emt 0:00:16]} 14. Qxd5 {[%emt 0:00:03]} Qxd5 {[%emt 0:07:25]} 15. Bxd5 {[%emt 0:00:05]} O-O {[%emt 0:06:47]} 16. Bg5 {[%emt 0:03:13]} Bxg5 {[%emt 0:09:29]} 17. Nxg5 {[%emt 0:00:06]} h6 {[%emt 0:01:51]} 18. Nf3 {[%emt 0:01:39]} Nb4 {[%emt 0:05:29]} 19. Bc4 {[%emt 0:05:50]} Bd3 {[%emt 0:21:10]} 20. Bxd3 {[%emt 0:03:47]} Nxd3 {[%emt 0:00:07]} 21. Rfd1 {[%emt 0:02:17]} Rfd8 {[%emt 0:03:11]} 22. h4 {[%emt 0:13:23]} Rd7 {[%emt 0:01:52]} 23. Rd2 {[%emt 0:03:34]} Rad8 {[%emt 0:00:12]} 24. Rad1 {[%emt 0:00:09]} Kf8 {[%emt 0:00:20]} 25. Ne1 {[%emt 0:00:40]} Ne5 {[%emt 0:00:51]} 26. Rxd7 {[%emt 0:00:35]} Rxd7 {[%emt 0:00:05]} 27. Rxd7 {[%emt 0:00:22]} Nxd7 {[%emt 0:00:48]} 28. Kf1 {[%emt 0:00:08]} Ke7 {[%emt 0:00:04]} 29. Ke2 {[%emt 0:01:40]} Kd6 {[%emt 0:00:06]} 30. Nd3 {[%emt 0:02:44]} Kd5 {[%emt 0:05:04]} 1/2-1/2